[Event "Titled Tuesday Blitz September 28 2021"]
[White "Aghasiyev, Kamal"]
[Black "Smirnov, Pavel"]
[WhiteFideId "13402854"]
[BlackFideId "4123425"]
[WhiteElo "2544"]
[BlackElo "2797"]
[Result "0-1"]
[Round "03"]
[TimeControl "180+1"]
[Date "2021.09.28"]
[WhiteClock "0:00:27"]
[BlackClock "0:02:20"]

1. d4 {[%clk 0:02:58]}  Nf6 {[%clk 0:02:59]} 2. c4 {[%clk 0:02:57]}  e6 {[%clk 0:02:59]} 3. g3 {[%clk 0:02:57]}  d5 {[%clk 0:02:59]} 4. Nf3 {[%clk 0:02:56]}  Be7 {[%clk 0:02:59]} 5. Bg2 {[%clk 0:02:55]}  O-O {[%clk 0:03:00]} 6. O-O {[%clk 0:02:53]}  c6 {[%clk 0:03:00]} 7. Qc2 {[%clk 0:02:51]}  b6 {[%clk 0:03:00]} 8. Nbd2 {[%clk 0:02:44]}  Bb7 {[%clk 0:02:59]} 9. e4 {[%clk 0:02:13]}  Na6 {[%clk 0:02:58]} 10. e5 {[%clk 0:01:58]}  Nd7 {[%clk 0:02:56]} 11. a3 {[%clk 0:01:57]}  c5 {[%clk 0:02:55]} 12. cxd5 {[%clk 0:01:20]}  exd5 {[%clk 0:02:52]} 13. Qd3 {[%clk 0:01:05]}  Nc7 {[%clk 0:02:51]} 14. Rd1 {[%clk 0:01:01]}  Ne6 {[%clk 0:02:48]} 15. Nf1 {[%clk 0:00:50]}  cxd4 {[%clk 0:02:41]} 16. Bf4 {[%clk 0:00:48]}  Ndc5 {[%clk 0:02:38]} 17. Qc2 {[%clk 0:00:33]}  d3 {[%clk 0:02:36]} 18. Qb1 {[%clk 0:00:33]}  d4 {[%clk 0:02:28]} 19. b4 {[%clk 0:00:28]}  Na4 {[%clk 0:02:27]} 20. Qxd3 {[%clk 0:00:28]}  Nb2 {[%clk 0:02:26]} 21. Qd2 {[%clk 0:00:27]}  Nxd1 {[%clk 0:02:25]} 22. Rxd1 {[%clk 0:00:27]}  Bxf3 {[%clk 0:02:19]} 23. Bxf3 {[%clk 0:00:27]}  g5 {[%clk 0:02:20]} 0-1


[Site "https://www.chess.com"]

[Event "Titled Tuesday Blitz September 28 2021"]
[White "Aldokhin, Ivan"]
[Black "Garrido Outon, Alex"]
[WhiteFideId "24115720"]
[BlackFideId "24516279"]
[WhiteElo "2265"]
[BlackElo "2131"]
[Result "1-0"]
[Round "03"]
[TimeControl "180+1"]
[Date "2021.09.28"]
[WhiteClock "0:00:03"]
[BlackClock "0:00:04"]

1. e4 {[%clk 0:03:00]}  c6 {[%clk 0:02:59]} 2. Nc3 {[%clk 0:02:59]}  g6 {[%clk 0:02:59]} 3. Nf3 {[%clk 0:03:00]}  d5 {[%clk 0:02:59]} 4. h3 {[%clk 0:02:57]}  Bg7 {[%clk 0:02:59]} 5. d4 {[%clk 0:02:57]}  dxe4 {[%clk 0:02:59]} 6. Nxe4 {[%clk 0:02:57]}  Nf6 {[%clk 0:02:59]} 7. Nxf6+ {[%clk 0:02:57]}  exf6 {[%clk 0:03:00]} 8. Bc4 {[%clk 0:02:55]}  O-O {[%clk 0:03:00]} 9. O-O {[%clk 0:02:55]}  Nd7 {[%clk 0:03:01]} 10. Bb3 {[%clk 0:02:53]}  Nb6 {[%clk 0:03:00]} 11. c4 {[%clk 0:02:50]}  Be6 {[%clk 0:02:57]} 12. Qc2 {[%clk 0:02:44]}  a5 {[%clk 0:02:56]} 13. a4 {[%clk 0:02:44]}  Re8 {[%clk 0:02:51]} 14. Be3 {[%clk 0:02:42]}  Qc7 {[%clk 0:02:28]} 15. Rad1 {[%clk 0:02:33]}  Rad8 {[%clk 0:02:25]} 16. Qc1 {[%clk 0:02:29]}  Bf5 {[%clk 0:02:23]} 17. Bf4 {[%clk 0:02:13]}  Qc8 {[%clk 0:02:22]} 18. Be3 {[%clk 0:02:06]}  Be4 {[%clk 0:02:02]} 19. Nd2 {[%clk 0:02:01]}  Bd3 {[%clk 0:01:58]} 20. Rfe1 {[%clk 0:01:59]}  Na8 {[%clk 0:01:53]} 21. Qc3 {[%clk 0:01:55]}  Bf5 {[%clk 0:01:53]} 22. Qxa5 {[%clk 0:01:53]}  Bxh3 {[%clk 0:01:36]} 23. gxh3 {[%clk 0:01:47]}  Qxh3 {[%clk 0:01:37]} 24. Qc3 {[%clk 0:01:05]}  Qg4+ {[%clk 0:01:23]} 25. Kf1 {[%clk 0:01:05]}  f5 {[%clk 0:01:13]} 26. f3 {[%clk 0:00:08]}  Qh3+ {[%clk 0:01:13]} 27. Kg1 {[%clk 0:00:08]}  Rxe3 {[%clk 0:00:45]} 28. Rxe3 {[%clk 0:00:07]}  Bxd4 {[%clk 0:00:45]} 29. Nf1 {[%clk 0:00:07]}  c5 {[%clk 0:00:31]} 30. Rxd4 {[%clk 0:00:07]}  cxd4 {[%clk 0:00:24]} 31. Qd2 {[%clk 0:00:06]}  Nc7 {[%clk 0:00:19]} 32. c5 {[%clk 0:00:06]}  Na6 {[%clk 0:00:07]} 33. Re7 {[%clk 0:00:02]}  Nxc5 {[%clk 0:00:08]} 34. Bxf7+ {[%clk 0:00:02]}  Kf8 {[%clk 0:00:09]} 35. Rc7 {[%clk 0:00:03]}  Nd7 {[%clk 0:00:04]} 36. Qb4+ {[%clk 0:00:03]}  Kxf7 {[%clk 0:00:04]} 37. Qxd4 {[%clk 0:00:03]} 1-0


[Site "https://www.chess.com"]

[Event "Titled Tuesday Blitz September 28 2021"]
[White "Assaubayeva, Bibisara"]
[Black "Svane, Rasmus"]
[WhiteFideId "13708694"]
[BlackFideId "4657101"]
[WhiteElo "2658"]
[BlackElo "2902"]
[Result "0-1"]
[Round "03"]
[TimeControl "180+1"]
[Date "2021.09.28"]
[WhiteClock "0:00:45"]
[BlackClock "0:01:36"]

1. d4 {[%clk 0:03:00]}  Nf6 {[%clk 0:02:58]} 2. c4 {[%clk 0:03:00]}  e6 {[%clk 0:02:58]} 3. Nf3 {[%clk 0:02:58]}  d5 {[%clk 0:02:58]} 4. Nc3 {[%clk 0:02:56]}  a6 {[%clk 0:02:58]} 5. cxd5 {[%clk 0:02:54]}  exd5 {[%clk 0:02:59]} 6. Bf4 {[%clk 0:02:53]}  Bd6 {[%clk 0:02:59]} 7. Be5 {[%clk 0:02:52]}  c6 {[%clk 0:02:54]} 8. e3 {[%clk 0:02:51]}  Qe7 {[%clk 0:02:45]} 9. Bd3 {[%clk 0:02:48]}  Bg4 {[%clk 0:02:44]} 10. Bxd6 {[%clk 0:02:42]}  Qxd6 {[%clk 0:02:45]} 11. Qb3 {[%clk 0:02:41]}  b5 {[%clk 0:02:31]} 12. Ne5 {[%clk 0:02:39]}  Be6 {[%clk 0:02:31]} 13. a4 {[%clk 0:02:35]}  c5 {[%clk 0:02:29]} 14. Qd1 {[%clk 0:02:12]}  b4 {[%clk 0:02:26]} 15. Ne2 {[%clk 0:02:10]}  c4 {[%clk 0:02:26]} 16. Bb1 {[%clk 0:02:09]}  Nfd7 {[%clk 0:02:19]} 17. f4 {[%clk 0:02:01]}  f6 {[%clk 0:02:19]} 18. Nf3 {[%clk 0:01:34]}  O-O {[%clk 0:02:18]} 19. O-O {[%clk 0:01:32]}  Nc6 {[%clk 0:02:16]} 20. f5 {[%clk 0:01:27]}  Bf7 {[%clk 0:02:15]} 21. Nf4 {[%clk 0:01:28]}  Rfe8 {[%clk 0:02:14]} 22. Qd2 {[%clk 0:01:27]}  Na5 {[%clk 0:02:11]} 23. Bc2 {[%clk 0:01:24]}  c3 {[%clk 0:02:11]} 24. Qf2 {[%clk 0:01:10]}  Nc4 {[%clk 0:01:47]} 25. Rfe1 {[%clk 0:00:52]}  Nxb2 {[%clk 0:01:47]} 26. Nd3 {[%clk 0:00:49]}  b3 {[%clk 0:01:43]} 27. Bb1 {[%clk 0:00:45]}  Nc4 {[%clk 0:01:36]} 0-1


[Site "https://www.chess.com"]

[Event "Titled Tuesday Blitz September 28 2021"]
[White "Astafurov, Arseniy"]
[Black "Indjic, Aleksandar"]
[WhiteFideId "24175218"]
[BlackFideId "911925"]
[WhiteElo "2163"]
[BlackElo "2643"]
[Result "0-1"]
[Round "03"]
[TimeControl "180+1"]
[Date "2021.09.28"]
[WhiteClock "0:00:04"]
[BlackClock "0:01:28"]

1. c4 {[%clk 0:03:00]}  b6 {[%clk 0:02:57]} 2. e4 {[%clk 0:03:00]}  e5 {[%clk 0:02:55]} 3. Nc3 {[%clk 0:03:01]}  Bb4 {[%clk 0:02:54]} 4. Nf3 {[%clk 0:03:02]}  Bxc3 {[%clk 0:02:50]} 5. bxc3 {[%clk 0:02:59]}  d6 {[%clk 0:02:49]} 6. d3 {[%clk 0:02:57]}  f5 {[%clk 0:02:46]} 7. exf5 {[%clk 0:02:42]}  Bxf5 {[%clk 0:02:46]} 8. g3 {[%clk 0:02:42]}  Nd7 {[%clk 0:02:43]} 9. Bg2 {[%clk 0:02:42]}  Nc5 {[%clk 0:02:41]} 10. O-O {[%clk 0:02:28]}  Bxd3 {[%clk 0:02:39]} 11. Nxe5 {[%clk 0:01:11]}  dxe5 {[%clk 0:02:37]} 12. Qh5+ {[%clk 0:00:49]}  Kf8 {[%clk 0:02:36]} 13. Bd5 {[%clk 0:00:28]}  Bg6 {[%clk 0:02:30]} 14. Qf3+ {[%clk 0:00:27]}  Nf6 {[%clk 0:02:31]} 15. Bxa8 {[%clk 0:00:27]}  e4 {[%clk 0:02:30]} 16. Qf4 {[%clk 0:00:21]}  Qxa8 {[%clk 0:02:29]} 17. Qxc7 {[%clk 0:00:21]}  Kg8 {[%clk 0:02:26]} 18. Be3 {[%clk 0:00:19]}  Ne6 {[%clk 0:02:24]} 19. Qd6 {[%clk 0:00:18]}  Bf7 {[%clk 0:02:23]} 20. a4 {[%clk 0:00:18]}  h5 {[%clk 0:02:22]} 21. h4 {[%clk 0:00:17]}  Kh7 {[%clk 0:02:21]} 22. a5 {[%clk 0:00:17]}  Rd8 {[%clk 0:02:20]} 23. Qe5 {[%clk 0:00:17]}  Qc6 {[%clk 0:02:01]} 24. axb6 {[%clk 0:00:16]}  axb6 {[%clk 0:02:02]} 25. Ra6 {[%clk 0:00:15]}  Ng4 {[%clk 0:02:02]} 26. Qb5 {[%clk 0:00:10]}  Qc8 {[%clk 0:01:57]} 27. Rxb6 {[%clk 0:00:08]}  Bg6 {[%clk 0:01:49]} 28. Rb7 {[%clk 0:00:08]}  Nxe3 {[%clk 0:01:46]} 29. fxe3 {[%clk 0:00:09]}  Nc5 {[%clk 0:01:45]} 30. Ra7 {[%clk 0:00:08]}  Rd2 {[%clk 0:01:40]} 31. Rf2 {[%clk 0:00:04]}  Rd1+ {[%clk 0:01:38]} 32. Kg2 {[%clk 0:00:05]}  Nd3 {[%clk 0:01:32]} 33. Rfa2 {[%clk 0:00:03]}  Ne1+ {[%clk 0:01:30]} 34. Kf2 {[%clk 0:00:03]}  Qf8+ {[%clk 0:01:28]} 35. Ke2 {[%clk 0:00:04]}  Qf3# {[%clk 0:01:28]} 0-1


[Site "https://www.chess.com"]

[Event "Titled Tuesday Blitz September 28 2021"]
[White "Atabayev, Saparmyrat"]
[Black "Chernomordik, Pavel"]
[WhiteFideId "14000571"]
[BlackFideId "2804530"]
[WhiteElo "2483"]
[BlackElo "2256"]
[Result "1-0"]
[Round "03"]
[TimeControl "180+1"]
[Date "2021.09.28"]
[WhiteClock "0:01:49"]
[BlackClock "0:00:14"]

1. e4 {[%clk 0:03:00]}  g6 {[%clk 0:02:55]} 2. d4 {[%clk 0:03:00]}  Bg7 {[%clk 0:02:54]} 3. Nc3 {[%clk 0:02:59]}  d6 {[%clk 0:02:53]} 4. Nf3 {[%clk 0:03:00]}  a6 {[%clk 0:02:53]} 5. Bd3 {[%clk 0:03:00]}  b5 {[%clk 0:02:50]} 6. a4 {[%clk 0:02:59]}  b4 {[%clk 0:02:50]} 7. Nd5 {[%clk 0:03:00]}  a5 {[%clk 0:02:49]} 8. c3 {[%clk 0:03:00]}  c6 {[%clk 0:02:46]} 9. Ne3 {[%clk 0:03:00]}  bxc3 {[%clk 0:02:46]} 10. bxc3 {[%clk 0:03:00]}  Ba6 {[%clk 0:02:43]} 11. O-O {[%clk 0:02:58]}  Nd7 {[%clk 0:02:38]} 12. Ba3 {[%clk 0:02:55]}  Qc7 {[%clk 0:02:26]} 13. Re1 {[%clk 0:02:39]}  c5 {[%clk 0:02:13]} 14. Nd5 {[%clk 0:02:36]}  Qd8 {[%clk 0:02:07]} 15. e5 {[%clk 0:02:34]}  dxe5 {[%clk 0:02:03]} 16. dxe5 {[%clk 0:02:31]}  e6 {[%clk 0:01:56]} 17. Bxa6 {[%clk 0:02:20]}  Rxa6 {[%clk 0:01:54]} 18. Qe2 {[%clk 0:02:19]}  Ra7 {[%clk 0:01:48]} 19. Rad1 {[%clk 0:02:19]}  Qc8 {[%clk 0:01:37]} 20. Ng5 {[%clk 0:01:59]}  Bxe5 {[%clk 0:01:14]} 21. Nb6 {[%clk 0:01:55]}  Nxb6 {[%clk 0:00:59]} 22. Qxe5 {[%clk 0:01:54]}  f6 {[%clk 0:00:58]} 23. Qxe6+ {[%clk 0:01:50]}  Qxe6 {[%clk 0:00:58]} 24. Rxe6+ {[%clk 0:01:51]}  Re7 {[%clk 0:00:48]} 25. Rxb6 {[%clk 0:01:50]}  fxg5 {[%clk 0:00:47]} 26. Bxc5 {[%clk 0:01:49]}  Re4 {[%clk 0:00:18]} 27. Bd4 {[%clk 0:01:47]}  Rxd4 {[%clk 0:00:17]} 28. Rxd4 {[%clk 0:01:48]}  Ne7 {[%clk 0:00:14]} 29. Rb8+ {[%clk 0:01:49]} 1-0


[Site "https://www.chess.com"]

[Event "Titled Tuesday Blitz September 28 2021"]
[White "Baskin, Robert"]
[Black "Martin Carmona, Gaston Manuel"]
[WhiteFideId "24662402"]
[BlackFideId "22284567"]
[WhiteElo "2521"]
[BlackElo "2161"]
[Result "1-0"]
[Round "03"]
[TimeControl "180+1"]
[Date "2021.09.28"]
[WhiteClock "0:00:50"]
[BlackClock "0:01:16"]

1. e4 {[%clk 0:03:00]}  e6 {[%clk 0:03:00]} 2. d4 {[%clk 0:03:00]}  d5 {[%clk 0:03:01]} 3. Nd2 {[%clk 0:02:59]}  dxe4 {[%clk 0:02:57]} 4. Nxe4 {[%clk 0:02:59]}  Bd7 {[%clk 0:02:58]} 5. Nf3 {[%clk 0:02:57]}  Bc6 {[%clk 0:02:58]} 6. Bd3 {[%clk 0:02:56]}  Nd7 {[%clk 0:02:59]} 7. c3 {[%clk 0:02:56]}  Ngf6 {[%clk 0:02:59]} 8. Nxf6+ {[%clk 0:02:55]}  Nxf6 {[%clk 0:03:00]} 9. O-O {[%clk 0:02:54]}  Bxf3 {[%clk 0:02:56]} 10. Qxf3 {[%clk 0:02:53]}  Qd5 {[%clk 0:02:57]} 11. Qe2 {[%clk 0:02:36]}  Be7 {[%clk 0:02:49]} 12. b4 {[%clk 0:02:25]}  c6 {[%clk 0:02:45]} 13. a4 {[%clk 0:02:07]}  O-O {[%clk 0:02:30]} 14. g4 {[%clk 0:02:06]}  Qd7 {[%clk 0:02:15]} 15. g5 {[%clk 0:01:52]}  Nd5 {[%clk 0:02:15]} 16. Bd2 {[%clk 0:01:51]}  Bd6 {[%clk 0:02:06]} 17. Rab1 {[%clk 0:01:40]}  Nf4 {[%clk 0:02:02]} 18. Bxf4 {[%clk 0:01:39]}  Bxf4 {[%clk 0:01:36]} 19. Qe4 {[%clk 0:01:38]}  Bxh2+ {[%clk 0:01:33]} 20. Kxh2 {[%clk 0:01:36]}  f5 {[%clk 0:01:34]} 21. gxf6 {[%clk 0:01:34]}  gxf6 {[%clk 0:01:32]} 22. Rg1+ {[%clk 0:01:31]}  Kh8 {[%clk 0:01:32]} 23. Rg3 {[%clk 0:01:26]}  Rg8 {[%clk 0:01:30]} 24. Rbg1 {[%clk 0:01:21]}  Rxg3 {[%clk 0:01:30]} 25. Rxg3 {[%clk 0:01:21]}  Rg8 {[%clk 0:01:30]} 26. Qf4 {[%clk 0:01:19]}  Rxg3 {[%clk 0:01:29]} 27. fxg3 {[%clk 0:01:16]}  Qd8 {[%clk 0:01:22]} 28. Qe4 {[%clk 0:00:59]}  Qd7 {[%clk 0:01:20]} 29. Bc4 {[%clk 0:00:59]}  e5 {[%clk 0:01:17]} 30. dxe5 {[%clk 0:00:51]}  Qd2+ {[%clk 0:01:18]} 31. Qe2 {[%clk 0:00:50]}  Qxc3 {[%clk 0:01:16]} 32. e6 {[%clk 0:00:50]} 1-0


[Site "https://www.chess.com"]

[Event "Titled Tuesday Blitz September 28 2021"]
[White "Bluebaum, Matthias"]
[Black "Shuvalov, Evgenij"]
[WhiteFideId "24651516"]
[BlackFideId "4187237"]
[WhiteElo "2681"]
[BlackElo "2129"]
[Result "1-0"]
[Round "03"]
[TimeControl "180+1"]
[Date "2021.09.28"]
[WhiteClock "0:02:05"]
[BlackClock "0:00:01"]

1. d4 {[%clk 0:03:00]}  Nf6 {[%clk 0:02:55]} 2. Nc3 {[%clk 0:02:59]}  e6 {[%clk 0:02:52]} 3. e4 {[%clk 0:02:58]}  d5 {[%clk 0:02:52]} 4. e5 {[%clk 0:02:59]}  Nfd7 {[%clk 0:02:52]} 5. Nce2 {[%clk 0:02:58]}  c5 {[%clk 0:02:52]} 6. c3 {[%clk 0:02:59]}  Nc6 {[%clk 0:02:47]} 7. Nf3 {[%clk 0:02:59]}  Qb6 {[%clk 0:02:38]} 8. a3 {[%clk 0:02:54]}  a5 {[%clk 0:02:27]} 9. Nf4 {[%clk 0:02:50]}  a4 {[%clk 0:02:19]} 10. Be2 {[%clk 0:02:44]}  Qa5 {[%clk 0:02:13]} 11. O-O {[%clk 0:02:44]}  b6 {[%clk 0:02:08]} 12. c4 {[%clk 0:02:36]}  Nxd4 {[%clk 0:01:42]} 13. cxd5 {[%clk 0:02:23]}  Nxf3+ {[%clk 0:01:01]} 14. Bxf3 {[%clk 0:02:22]}  Nxe5 {[%clk 0:01:02]} 15. dxe6 {[%clk 0:02:22]}  Nxf3+ {[%clk 0:00:40]} 16. Qxf3 {[%clk 0:02:23]}  fxe6 {[%clk 0:00:39]} 17. Qh5+ {[%clk 0:02:22]}  Kd8 {[%clk 0:00:21]} 18. Ng6 {[%clk 0:02:22]}  hxg6 {[%clk 0:00:11]} 19. Qxh8 {[%clk 0:02:23]}  Ke8 {[%clk 0:00:09]} 20. Bf4 {[%clk 0:02:07]}  Kf7 {[%clk 0:00:06]} 21. Rad1 {[%clk 0:02:06]}  Qb5 {[%clk 0:00:01]} 22. Be5 {[%clk 0:02:05]} 1-0


[Site "https://www.chess.com"]

[Event "Titled Tuesday Blitz September 28 2021"]
[White "De Silva, L M S T"]
[Black "Kamsky, Gata"]
[WhiteFideId "9953698"]
[BlackFideId "2000024"]
[WhiteElo "2666"]
[BlackElo "2906"]
[Result "1/2-1/2"]
[Round "03"]
[TimeControl "180+1"]
[Date "2021.09.28"]
[WhiteClock "0:00:09"]
[BlackClock "0:00:09"]

1. e4 {[%clk 0:03:00]}  c5 {[%clk 0:02:57]} 2. Nf3 {[%clk 0:03:01]}  e6 {[%clk 0:02:56]} 3. d4 {[%clk 0:03:01]}  cxd4 {[%clk 0:02:56]} 4. Nxd4 {[%clk 0:03:02]}  a6 {[%clk 0:02:55]} 5. Be2 {[%clk 0:03:01]}  Nf6 {[%clk 0:02:47]} 6. Nc3 {[%clk 0:03:00]}  d6 {[%clk 0:02:46]} 7. a4 {[%clk 0:03:00]}  b6 {[%clk 0:02:43]} 8. O-O {[%clk 0:02:59]}  Bb7 {[%clk 0:02:42]} 9. Qd3 {[%clk 0:02:55]}  Nbd7 {[%clk 0:02:41]} 10. Nb3 {[%clk 0:02:41]}  Be7 {[%clk 0:02:37]} 11. f4 {[%clk 0:02:34]}  Rc8 {[%clk 0:02:28]} 12. Bf3 {[%clk 0:02:32]}  Qc7 {[%clk 0:02:18]} 13. Be3 {[%clk 0:02:30]}  O-O {[%clk 0:02:16]} 14. Rad1 {[%clk 0:02:27]}  Rfd8 {[%clk 0:02:15]} 15. Qe2 {[%clk 0:02:25]}  Qb8 {[%clk 0:02:06]} 16. Qf2 {[%clk 0:02:23]}  b5 {[%clk 0:01:58]} 17. axb5 {[%clk 0:02:21]}  axb5 {[%clk 0:01:58]} 18. Ba7 {[%clk 0:01:45]}  Qa8 {[%clk 0:01:17]} 19. Ra1 {[%clk 0:01:44]}  b4 {[%clk 0:01:17]} 20. Nb5 {[%clk 0:01:02]}  Bxe4 {[%clk 0:01:14]} 21. Bb6 {[%clk 0:00:51]}  Qd5 {[%clk 0:01:07]} 22. Bxd8 {[%clk 0:00:50]}  Bxd8 {[%clk 0:01:07]} 23. N5d4 {[%clk 0:00:39]}  e5 {[%clk 0:01:02]} 24. fxe5 {[%clk 0:00:37]}  dxe5 {[%clk 0:01:02]} 25. Nf5 {[%clk 0:00:28]}  Bxf3 {[%clk 0:00:56]} 26. Qxf3 {[%clk 0:00:29]}  Qxf3 {[%clk 0:00:55]} 27. Rxf3 {[%clk 0:00:30]}  e4 {[%clk 0:00:51]} 28. Rff1 {[%clk 0:00:29]}  g6 {[%clk 0:00:38]} 29. Nd6 {[%clk 0:00:29]}  Rc6 {[%clk 0:00:37]} 30. Ra8 {[%clk 0:00:28]}  Rxd6 {[%clk 0:00:36]} 31. Rxd8+ {[%clk 0:00:28]}  Kg7 {[%clk 0:00:36]} 32. Nc5 {[%clk 0:00:23]}  Rd5 {[%clk 0:00:29]} 33. Nxd7 {[%clk 0:00:20]}  Nxd7 {[%clk 0:00:29]} 34. c4 {[%clk 0:00:20]}  bxc3 {[%clk 0:00:28]} 35. bxc3 {[%clk 0:00:21]}  Rd3 {[%clk 0:00:24]} 36. c4 {[%clk 0:00:21]}  f5 {[%clk 0:00:20]} 37. g3 {[%clk 0:00:21]}  Kf6 {[%clk 0:00:19]} 38. Rc1 {[%clk 0:00:17]}  Nc5 {[%clk 0:00:19]} 39. Rxd3 {[%clk 0:00:15]}  exd3 {[%clk 0:00:18]} 40. Kf2 {[%clk 0:00:15]}  d2 {[%clk 0:00:18]} 41. Rd1 {[%clk 0:00:15]}  Ke5 {[%clk 0:00:17]} 42. Ke3 {[%clk 0:00:15]}  Ne4 {[%clk 0:00:18]} 43. Ra1 {[%clk 0:00:10]}  g5 {[%clk 0:00:17]} 44. Ra5+ {[%clk 0:00:10]}  Ke6 {[%clk 0:00:17]} 45. Rd5 {[%clk 0:00:10]}  Nd6 {[%clk 0:00:12]} 46. Rd4 {[%clk 0:00:06]}  Nxc4+ {[%clk 0:00:11]} 47. Ke2 {[%clk 0:00:05]}  Ne5 {[%clk 0:00:12]} 48. Rxd2 {[%clk 0:00:05]}  h5 {[%clk 0:00:10]} 49. Ra2 {[%clk 0:00:06]}  h4 {[%clk 0:00:09]} 50. Kf2 {[%clk 0:00:06]}  h3 {[%clk 0:00:08]} 51. Ra6+ {[%clk 0:00:06]}  Kd5 {[%clk 0:00:08]} 52. Ra5+ {[%clk 0:00:07]}  Ke4 {[%clk 0:00:08]} 53. Ra4+ {[%clk 0:00:07]}  Kd5 {[%clk 0:00:08]} 54. Ra5+ {[%clk 0:00:08]}  Ke4 {[%clk 0:00:09]} 55. Ra4+ {[%clk 0:00:08]}  Kd5 {[%clk 0:00:09]} 56. Ra5+ {[%clk 0:00:09]} 1/2-1/2


[Site "https://www.chess.com"]

[Event "Titled Tuesday Blitz September 28 2021"]
[White "Demidov, Mikhail"]
[Black "Stribuk, Artiom"]
[WhiteFideId "4197143"]
[BlackFideId "13515659"]
[WhiteElo "2913"]
[BlackElo "2705"]
[Result "1-0"]
[Round "03"]
[TimeControl "180+1"]
[Date "2021.09.28"]
[WhiteClock "0:01:39"]
[BlackClock "0:00:06"]

1. Nf3 {[%clk 0:02:57]}  Nf6 {[%clk 0:02:59]} 2. g3 {[%clk 0:02:58]}  g6 {[%clk 0:03:00]} 3. Bg2 {[%clk 0:02:58]}  Bg7 {[%clk 0:03:00]} 4. O-O {[%clk 0:02:58]}  O-O {[%clk 0:03:01]} 5. c4 {[%clk 0:02:59]}  c6 {[%clk 0:03:00]} 6. Nc3 {[%clk 0:02:59]}  d5 {[%clk 0:03:01]} 7. cxd5 {[%clk 0:03:00]}  cxd5 {[%clk 0:03:02]} 8. d4 {[%clk 0:03:00]}  Ne4 {[%clk 0:03:02]} 9. Bf4 {[%clk 0:03:00]}  Nxc3 {[%clk 0:03:02]} 10. bxc3 {[%clk 0:03:01]}  Nc6 {[%clk 0:03:03]} 11. Re1 {[%clk 0:02:59]}  b6 {[%clk 0:03:00]} 12. h4 {[%clk 0:02:59]}  Bb7 {[%clk 0:02:16]} 13. h5 {[%clk 0:02:59]}  Rc8 {[%clk 0:02:12]} 14. h6 {[%clk 0:02:59]}  Bh8 {[%clk 0:02:12]} 15. Rc1 {[%clk 0:03:00]}  Na5 {[%clk 0:02:11]} 16. Nd2 {[%clk 0:02:58]}  Nc4 {[%clk 0:02:11]} 17. e4 {[%clk 0:02:52]}  Nxd2 {[%clk 0:02:05]} 18. Qxd2 {[%clk 0:02:53]}  dxe4 {[%clk 0:02:05]} 19. Bxe4 {[%clk 0:02:53]}  Bxe4 {[%clk 0:02:06]} 20. Rxe4 {[%clk 0:02:52]}  e6 {[%clk 0:01:19]} 21. Be5 {[%clk 0:02:47]}  f6 {[%clk 0:01:19]} 22. Bf4 {[%clk 0:02:46]}  Re8 {[%clk 0:01:19]} 23. Qe2 {[%clk 0:02:31]}  Kf7 {[%clk 0:01:15]} 24. g4 {[%clk 0:02:23]}  Qd5 {[%clk 0:01:03]} 25. c4 {[%clk 0:02:19]}  Qd7 {[%clk 0:01:03]} 26. Rd1 {[%clk 0:02:15]}  f5 {[%clk 0:00:33]} 27. Re3 {[%clk 0:02:07]}  Bf6 {[%clk 0:00:31]} 28. g5 {[%clk 0:02:03]}  Bh8 {[%clk 0:00:19]} 29. d5 {[%clk 0:01:55]}  e5 {[%clk 0:00:19]} 30. Bxe5 {[%clk 0:01:52]}  Bxe5 {[%clk 0:00:14]} 31. Rxe5 {[%clk 0:01:53]}  Qd8 {[%clk 0:00:14]} 32. f4 {[%clk 0:01:52]}  Qd6 {[%clk 0:00:12]} 33. Re1 {[%clk 0:01:49]}  Qc5+ {[%clk 0:00:10]} 34. Kg2 {[%clk 0:01:38]}  Rxe5 {[%clk 0:00:06]} 35. Qxe5 {[%clk 0:01:39]} 1-0


[Site "https://www.chess.com"]

[Event "Titled Tuesday Blitz September 28 2021"]
[White "Demin, Vladimir"]
[Black "Rozman, Levy"]
[WhiteFideId "4167457"]
[BlackFideId "2039877"]
[WhiteElo "2496"]
[BlackElo "2376"]
[Result "1-0"]
[Round "03"]
[TimeControl "180+1"]
[Date "2021.09.28"]
[WhiteClock "0:00:19"]
[BlackClock "0:00:02"]

1. e4 {[%clk 0:02:24]}  c6 {[%clk 0:02:59]} 2. d4 {[%clk 0:02:24]}  d5 {[%clk 0:03:00]} 3. e5 {[%clk 0:02:24]}  Bf5 {[%clk 0:03:00]} 4. Ne2 {[%clk 0:02:25]}  e6 {[%clk 0:03:00]} 5. Ng3 {[%clk 0:02:25]}  Bg6 {[%clk 0:02:59]} 6. h4 {[%clk 0:02:26]}  h5 {[%clk 0:02:57]} 7. Be2 {[%clk 0:02:26]}  c5 {[%clk 0:02:57]} 8. Nd2 {[%clk 0:02:23]}  Nc6 {[%clk 0:02:57]} 9. dxc5 {[%clk 0:02:16]}  Bxc5 {[%clk 0:02:55]} 10. Nb3 {[%clk 0:02:01]}  Bb6 {[%clk 0:02:40]} 11. Bf4 {[%clk 0:02:02]}  a5 {[%clk 0:02:38]} 12. a4 {[%clk 0:01:41]}  Nge7 {[%clk 0:02:33]} 13. c3 {[%clk 0:01:39]}  Nf5 {[%clk 0:02:30]} 14. Nxf5 {[%clk 0:01:39]}  Bxf5 {[%clk 0:02:30]} 15. Nd4 {[%clk 0:01:27]}  Bxd4 {[%clk 0:02:21]} 16. cxd4 {[%clk 0:01:27]}  Qb6 {[%clk 0:02:22]} 17. Bb5 {[%clk 0:01:27]}  O-O {[%clk 0:02:16]} 18. Be3 {[%clk 0:01:26]}  Rac8 {[%clk 0:02:10]} 19. O-O {[%clk 0:01:24]}  Bg6 {[%clk 0:02:06]} 20. Rc1 {[%clk 0:01:22]}  Nb4 {[%clk 0:02:03]} 21. Rc3 {[%clk 0:01:22]}  Na2 {[%clk 0:01:56]} 22. Ra3 {[%clk 0:01:19]}  Nb4 {[%clk 0:01:56]} 23. Rc3 {[%clk 0:01:19]}  Rc7 {[%clk 0:01:53]} 24. Qd2 {[%clk 0:01:11]}  Na2 {[%clk 0:01:46]} 25. Rc5 {[%clk 0:01:10]}  Rxc5 {[%clk 0:01:35]} 26. dxc5 {[%clk 0:01:10]}  Qc7 {[%clk 0:01:36]} 27. f4 {[%clk 0:01:08]}  Nb4 {[%clk 0:01:36]} 28. Bd4 {[%clk 0:01:01]}  Qd8 {[%clk 0:01:32]} 29. g3 {[%clk 0:01:00]}  Be4 {[%clk 0:01:30]} 30. Rc1 {[%clk 0:00:57]}  Qe7 {[%clk 0:01:29]} 31. Kh2 {[%clk 0:00:56]}  Kh7 {[%clk 0:01:27]} 32. Be2 {[%clk 0:00:52]}  Bg6 {[%clk 0:01:20]} 33. c6 {[%clk 0:00:48]}  Nxc6 {[%clk 0:01:08]} 34. Bc5 {[%clk 0:00:49]}  Qd8 {[%clk 0:01:09]} 35. Bxf8 {[%clk 0:00:48]}  Qxf8 {[%clk 0:01:10]} 36. Bb5 {[%clk 0:00:48]}  Nb4 {[%clk 0:01:04]} 37. Rc7 {[%clk 0:00:47]}  Qb8 {[%clk 0:01:02]} 38. Qc1 {[%clk 0:00:41]}  d4 {[%clk 0:00:52]} 39. Rd7 {[%clk 0:00:41]}  Nd5 {[%clk 0:00:41]} 40. Qc5 {[%clk 0:00:36]}  d3 {[%clk 0:00:38]} 41. Rxd5 {[%clk 0:00:35]}  exd5 {[%clk 0:00:37]} 42. Qxd5 {[%clk 0:00:36]}  Qa7 {[%clk 0:00:31]} 43. Bxd3 {[%clk 0:00:33]}  Qf2+ {[%clk 0:00:31]} 44. Kh3 {[%clk 0:00:34]}  Qxb2 {[%clk 0:00:27]} 45. e6 {[%clk 0:00:20]}  fxe6 {[%clk 0:00:14]} 46. Qxh5+ {[%clk 0:00:19]}  Kg8 {[%clk 0:00:07]} 47. Qxg6 {[%clk 0:00:20]}  Kf8 {[%clk 0:00:04]} 48. Qxe6 {[%clk 0:00:19]}  Qd2 {[%clk 0:00:02]} 49. Bg6 {[%clk 0:00:19]} 1-0


[Site "https://www.chess.com"]